[Event "*** Titled Tuesday Blitz"]
[Site "Chess.com"]
[Date "2020.11.10"]
[Round "11"]
[White "kidagent"]
[Black "No_t_ime_to_die"]
[Result "0-1"]
[WhiteElo "2293"]
[BlackElo "2460"]
[TimeControl "180+1"]
[EndTime "12:11:04 PST"]
[Termination "No_t_ime_to_die won by checkmate"]

1. e4 {[%clk 0:03:00.9]} 1... c5 {[%clk 0:02:59.4]} 2. Nf3 {[%clk 0:03:01]} 2...
Nc6 {[%clk 0:02:58.3]} 3. d4 {[%clk 0:03:01.3]} 3... cxd4 {[%clk 0:02:59.2]} 4.
Nxd4 {[%clk 0:03:01.7]} 4... g6 {[%clk 0:02:57.6]} 5. Nc3 {[%clk 0:03:01.3]}
5... Bg7 {[%clk 0:02:57.7]} 6. Be3 {[%clk 0:03:01.5]} 6... Nf6 {[%clk
0:02:58.3]} 7. Be2 {[%clk 0:03:01.5]} 7... O-O {[%clk 0:02:58.6]} 8. Nb3 {[%clk
0:03:01.7]} 8... d6 {[%clk 0:02:54.6]} 9. O-O {[%clk 0:03:01.5]} 9... a6 {[%clk
0:02:54.1]} 10. a4 {[%clk 0:02:55.1]} 10... Be6 {[%clk 0:02:45.7]} 11. h3 {[%clk
0:02:54.7]} 11... Ne5 {[%clk 0:02:36]} 12. Nd2 {[%clk 0:02:48.7]} 12... Rc8
{[%clk 0:02:33]} 13. f4 {[%clk 0:02:46.2]} 13... Nc4 {[%clk 0:02:32]} 14. Nxc4
{[%clk 0:02:45.6]} 14... Bxc4 {[%clk 0:02:32.5]} 15. Bxc4 {[%clk 0:02:45.1]}
15... Rxc4 {[%clk 0:02:33.4]} 16. e5 {[%clk 0:02:42.2]} 16... dxe5 {[%clk
0:02:29.1]} 17. fxe5 {[%clk 0:02:43.1]} 17... Ne4 {[%clk 0:02:26.3]} 18. Qd3
{[%clk 0:02:24.6]} 18... Qxd3 {[%clk 0:01:02.4]} 19. cxd3 {[%clk 0:02:24]} 19...
Rxc3 {[%clk 0:01:03.3]} 20. bxc3 {[%clk 0:02:22.9]} 20... Nxc3 {[%clk
0:01:04.2]} 21. d4 {[%clk 0:02:17.3]} 21... Rd8 {[%clk 0:01:02.4]} 22. Kh1
{[%clk 0:02:07.2]} 22... Ne2 {[%clk 0:01:00.8]} 23. Rfd1 {[%clk 0:02:05.2]}
23... Ng3+ {[%clk 0:00:47.8]} 24. Kh2 {[%clk 0:02:02.8]} 24... Nf5 {[%clk
0:00:48.7]} 25. Bf2 {[%clk 0:02:00.9]} 25... Nxd4 {[%clk 0:00:45.6]} 26. Bxd4
{[%clk 0:01:38.7]} 26... Rxd4 {[%clk 0:00:43.7]} 27. Rxd4 {[%clk 0:01:38.5]}
27... Bxe5+ {[%clk 0:00:44.1]} 28. g3 {[%clk 0:01:37.7]} 28... Bxd4 {[%clk
0:00:44.1]} 29. Rb1 {[%clk 0:01:34.1]} 29... b6 {[%clk 0:00:44.1]} 30. Kg2
{[%clk 0:01:34.1]} 30... e5 {[%clk 0:00:44]} 31. Kf3 {[%clk 0:01:34.2]} 31... f5
{[%clk 0:00:44.6]} 32. Rc1 {[%clk 0:01:28.8]} 32... Kf7 {[%clk 0:00:42.7]} 33.
Rc7+ {[%clk 0:01:28.1]} 33... Ke6 {[%clk 0:00:41.5]} 34. Rxh7 {[%clk 0:01:27.1]}
34... Kd5 {[%clk 0:00:38.5]} 35. Rg7 {[%clk 0:01:25.9]} 35... e4+ {[%clk
0:00:38.4]} 36. Kf4 {[%clk 0:01:25.7]} 36... Bxg7 {[%clk 0:00:39.3]} 37. h4
{[%clk 0:01:25.4]} 37... Bh6# {[%clk 0:00:38.6]} 0-1

[Event "*** Titled Tuesday Blitz"]
[Site "Chess.com"]
[Date "2020.11.10"]
[Round "11"]
[White "hansen"]
[Black "ChessWarrior7197"]
[Result "1-0"]
[WhiteElo "2914"]
[BlackElo "2995"]
[TimeControl "180+1"]
[EndTime "12:11:06 PST"]
[Termination "hansen won by resignation"]

1. e4 {[%clk 0:03:00.9]} 1... c6 {[%clk 0:02:55.8]} 2. Nc3 {[%clk 0:03:00.5]}
2... d5 {[%clk 0:02:56.7]} 3. Nf3 {[%clk 0:03:00.8]} 3... dxe4 {[%clk
0:02:56.8]} 4. Nxe4 {[%clk 0:03:01.5]} 4... Nf6 {[%clk 0:02:57.7]} 5. d3 {[%clk
0:03:01.8]} 5... g6 {[%clk 0:02:54.9]} 6. Be2 {[%clk 0:03:00.7]} 6... Bg7 {[%clk
0:02:55.2]} 7. O-O {[%clk 0:03:01.4]} 7... O-O {[%clk 0:02:55.8]} 8. Re1 {[%clk
0:03:01.7]} 8... a5 {[%clk 0:02:56]} 9. c3 {[%clk 0:03:01.6]} 9... a4 {[%clk
0:02:55.8]} 10. Qc2 {[%clk 0:02:58.8]} 10... a3 {[%clk 0:02:55.6]} 11. b4 {[%clk
0:02:58]} 11... Na6 {[%clk 0:02:49.7]} 12. Bg5 {[%clk 0:02:54.1]} 12... Nc7
{[%clk 0:02:49.7]} 13. Rad1 {[%clk 0:02:50.3]} 13... Bf5 {[%clk 0:02:49.2]} 14.
Nd4 {[%clk 0:02:47.9]} 14... Bd7 {[%clk 0:02:43.3]} 15. Nc5 {[%clk 0:02:41.5]}
15... b6 {[%clk 0:02:37.7]} 16. Nxd7 {[%clk 0:02:41.4]} 16... Qxd7 {[%clk
0:02:38.6]} 17. Bf3 {[%clk 0:02:41.1]} 17... Ncd5 {[%clk 0:02:39.1]} 18. Qb3
{[%clk 0:02:37.1]} 18... e6 {[%clk 0:02:35.5]} 19. c4 {[%clk 0:02:30.5]} 19...
Ne7 {[%clk 0:02:32.8]} 20. Nc2 {[%clk 0:02:26.6]} 20... h6 {[%clk 0:02:27.8]}
21. Bc1 {[%clk 0:02:15.4]} 21... Qa7 {[%clk 0:01:56]} 22. b5 {[%clk 0:02:08]}
22... Rac8 {[%clk 0:01:50.4]} 23. Nd4 {[%clk 0:02:00.7]} 23... c5 {[%clk
0:01:16.1]} 24. Nc6 {[%clk 0:02:00.8]} 24... Qd7 {[%clk 0:01:15.4]} 25. d4
{[%clk 0:01:46.7]} 25... Nxc6 {[%clk 0:00:54]} 26. bxc6 {[%clk 0:01:44.7]} 26...
Qa7 {[%clk 0:00:54.3]} 27. d5 {[%clk 0:01:34.8]} 27... Rfd8 {[%clk 0:00:42.4]}
28. d6 {[%clk 0:01:33.6]} 28... Bf8 {[%clk 0:00:29.5]} 29. Bf4 {[%clk
0:01:28.2]} 29... g5 {[%clk 0:00:27.1]} 30. Be5 {[%clk 0:01:27.3]} 30... g4
{[%clk 0:00:24.7]} 31. Bxf6 {[%clk 0:01:24.2]} 1-0

[Event "*** Titled Tuesday Blitz"]
[Site "Chess.com"]
[Date "2020.11.10"]
[Round "11"]
[White "AnishOnYoutube"]
[Black "Grandelicious"]
[Result "1-0"]
[WhiteElo "2973"]
[BlackElo "2805"]
[TimeControl "180+1"]
[EndTime "12:11:15 PST"]
[Termination "AnishOnYoutube won on time"]

1. d4 {[%clk 0:03:00.9]} 1... d5 {[%clk 0:02:54.3]} 2. c4 {[%clk 0:03:01.1]}
2... e6 {[%clk 0:02:55]} 3. Nf3 {[%clk 0:03:01.4]} 3... a6 {[%clk 0:02:55.3]} 4.
Bg5 {[%clk 0:02:47.3]} 4... Be7 {[%clk 0:02:53.9]} 5. Bxe7 {[%clk 0:02:47.4]}
5... Nxe7 {[%clk 0:02:54.3]} 6. Nbd2 {[%clk 0:02:47.7]} 6... O-O {[%clk
0:02:52.8]} 7. g3 {[%clk 0:02:47.8]} 7... b6 {[%clk 0:02:51.1]} 8. cxd5 {[%clk
0:02:41.7]} 8... exd5 {[%clk 0:02:51]} 9. Bg2 {[%clk 0:02:42.1]} 9... Nd7 {[%clk
0:02:51.7]} 10. O-O {[%clk 0:02:42.1]} 10... Nf6 {[%clk 0:02:51.5]} 11. Rc1
{[%clk 0:02:41]} 11... Bf5 {[%clk 0:02:48.7]} 12. b4 {[%clk 0:02:36.7]} 12...
Qd6 {[%clk 0:02:26.2]} 13. Qb3 {[%clk 0:02:36.6]} 13... Rfc8 {[%clk 0:02:26]}
14. e3 {[%clk 0:02:36]} 14... a5 {[%clk 0:02:03.4]} 15. b5 {[%clk 0:02:32.2]}
15... a4 {[%clk 0:02:03.2]} 16. Qb2 {[%clk 0:02:30]} 16... Bd3 {[%clk
0:01:58.1]} 17. Rfe1 {[%clk 0:02:28.4]} 17... Ra5 {[%clk 0:01:55.5]} 18. Bh3
{[%clk 0:02:28.1]} 18... Rca8 {[%clk 0:01:29.5]} 19. Qc3 {[%clk 0:02:26.6]}
19... Bxb5 {[%clk 0:01:29.4]} 20. Qxc7 {[%clk 0:02:27.1]} 20... Qxc7 {[%clk
0:01:13]} 21. Rxc7 {[%clk 0:02:26.7]} 21... R5a7 {[%clk 0:01:11.1]} 22. Rec1
{[%clk 0:02:25.1]} 22... Kf8 {[%clk 0:00:44]} 23. Ne5 {[%clk 0:02:24]} 23... Ne8
{[%clk 0:00:23.9]} 24. Rxa7 {[%clk 0:02:21.5]} 24... Rxa7 {[%clk 0:00:24.8]} 25.
Nb1 {[%clk 0:02:12.2]} 25... Nd6 {[%clk 0:00:18.4]} 26. Na3 {[%clk 0:02:10.5]}
26... Be8 {[%clk 0:00:16.8]} 27. Bf1 {[%clk 0:02:08.4]} 27... f6 {[%clk
0:00:14.9]} 28. Nd3 {[%clk 0:02:08.9]} 28... b5 {[%clk 0:00:11]} 29. Nb4 {[%clk
0:02:07.3]} 29... Nc4 {[%clk 0:00:11.5]} 30. Bxc4 {[%clk 0:02:04.3]} 30... bxc4
{[%clk 0:00:12.4]} 31. Nb1 {[%clk 0:01:55.2]} 31... Rb7 {[%clk 0:00:11.2]} 32.
a3 {[%clk 0:01:55.8]} 32... Bf7 {[%clk 0:00:04.6]} 33. Nc3 {[%clk 0:01:56.1]}
33... Ra7 {[%clk 0:00:05.5]} 34. Rb1 {[%clk 0:01:54.3]} 34... g5 {[%clk
0:00:02.4]} 35. Nba2 {[%clk 0:01:53.8]} 35... Bg6 {[%clk 0:00:01.1]} 36. Rb6
{[%clk 0:01:53.7]} 36... Kf7 {[%clk 0:00:01.2]} 37. Nb4 {[%clk 0:01:54]} 1-0

[Event "*** Titled Tuesday Blitz"]
[Site "Chess.com"]
[Date "2020.11.10"]
[Round "11"]
[White "sokidze"]
[Black "yourstrulyme"]
[Result "1-0"]
[WhiteElo "2545"]
[BlackElo "2376"]
[TimeControl "180+1"]
[EndTime "12:11:21 PST"]
[Termination "sokidze won by resignation"]

1. e4 {[%clk 0:03:00.9]} 1... Nf6 {[%clk 0:02:56.9]} 2. e5 {[%clk 0:03:01.1]}
2... Nd5 {[%clk 0:02:57.2]} 3. d4 {[%clk 0:03:01.7]} 3... d6 {[%clk 0:02:57.6]}
4. c4 {[%clk 0:03:02]} 4... Nb6 {[%clk 0:02:57.5]} 5. exd6 {[%clk 0:03:02.7]}
5... cxd6 {[%clk 0:02:58.4]} 6. Nc3 {[%clk 0:03:03.3]} 6... g6 {[%clk
0:02:58.4]} 7. Be3 {[%clk 0:03:03.9]} 7... Bg7 {[%clk 0:02:59.1]} 8. Rc1 {[%clk
0:03:04.6]} 8... O-O {[%clk 0:02:59.7]} 9. b3 {[%clk 0:03:05.3]} 9... e5 {[%clk
0:03:00.1]} 10. dxe5 {[%clk 0:03:05.8]} 10... dxe5 {[%clk 0:03:01]} 11. c5
{[%clk 0:03:00.5]} 11... N6d7 {[%clk 0:02:59.9]} 12. Nf3 {[%clk 0:02:58.1]}
12... Nc6 {[%clk 0:03:00.3]} 13. Bc4 {[%clk 0:02:56.7]} 13... Qa5 {[%clk
0:03:00.8]} 14. O-O {[%clk 0:01:53.6]} 14... Nxc5 {[%clk 0:03:00.3]} 15. Nb5
{[%clk 0:01:37.4]} 15... Rd8 {[%clk 0:02:49.3]} 16. Qe2 {[%clk 0:01:30.5]} 16...
Nd4 {[%clk 0:02:47.5]} 17. Bxd4 {[%clk 0:01:03]} 17... exd4 {[%clk 0:02:47.1]}
18. Qe7 {[%clk 0:01:03.4]} 18... Ne6 {[%clk 0:02:35.4]} 19. Nd6 {[%clk
0:00:43.5]} 19... Rf8 {[%clk 0:01:58.3]} 20. Nxc8 {[%clk 0:00:31.8]} 20... Raxc8
{[%clk 0:01:55.6]} 21. Bxe6 {[%clk 0:00:32.1]} 21... Rxc1 {[%clk 0:01:55.4]} 22.
Rxc1 {[%clk 0:00:32]} 22... fxe6 {[%clk 0:01:54.9]} 23. Rc7 {[%clk 0:00:25]}
23... Qxc7 {[%clk 0:01:07.8]} 24. Qxc7 {[%clk 0:00:24.2]} 24... e5 {[%clk
0:01:08.3]} 25. Nxe5 {[%clk 0:00:21.3]} 1-0

[Event "*** Titled Tuesday Blitz"]
[Site "Chess.com"]
[Date "2020.11.10"]
[Round "11"]
[White "Ave_Mariia"]
[Black "fabianvivasz"]
[Result "1-0"]
[WhiteElo "2512"]
[BlackElo "2388"]
[TimeControl "180+1"]
[EndTime "12:11:25 PST"]
[Termination "Ave_Mariia won on time"]

1. d4 {[%clk 0:03:00.9]} 1... Nf6 {[%clk 0:02:59.4]} 2. c4 {[%clk 0:03:00.9]}
2... c5 {[%clk 0:02:57.5]} 3. d5 {[%clk 0:03:00.9]} 3... b5 {[%clk 0:02:58.1]}
4. cxb5 {[%clk 0:03:00.8]} 4... a6 {[%clk 0:02:58.6]} 5. bxa6 {[%clk 0:03:00]}
5... g6 {[%clk 0:02:59.1]} 6. Nc3 {[%clk 0:02:58.6]} 6... Bg7 {[%clk 0:02:59.4]}
7. Nf3 {[%clk 0:02:38.2]} 7... O-O {[%clk 0:02:58.3]} 8. g3 {[%clk 0:02:37.9]}
8... Bxa6 {[%clk 0:02:46.4]} 9. Bg2 {[%clk 0:02:36.2]} 9... d6 {[%clk
0:02:46.5]} 10. Rb1 {[%clk 0:02:33.8]} 10... Nbd7 {[%clk 0:02:37.8]} 11. O-O
{[%clk 0:02:30]} 11... Qa5 {[%clk 0:02:33.7]} 12. Qc2 {[%clk 0:02:20.6]} 12...
Bc4 {[%clk 0:01:50.8]} 13. Nd2 {[%clk 0:02:17.5]} 13... Ba6 {[%clk 0:01:36.7]}
14. b3 {[%clk 0:02:15.3]} 14... Rfc8 {[%clk 0:01:28.5]} 15. a3 {[%clk
0:02:02.8]} 15... Ng4 {[%clk 0:01:01.6]} 16. Bb2 {[%clk 0:02:01]} 16... f5
{[%clk 0:00:36.2]} 17. h3 {[%clk 0:01:53.7]} 17... Ngf6 {[%clk 0:00:34.5]} 18.
Nf3 {[%clk 0:01:51]} 18... Rab8 {[%clk 0:00:29]} 19. Rfd1 {[%clk 0:01:45.5]}
19... Bb7 {[%clk 0:00:13.1]} 20. e4 {[%clk 0:01:42.4]} 20... Nxe4 {[%clk
0:00:09.3]} 21. Nxe4 {[%clk 0:01:37.9]} 21... fxe4 {[%clk 0:00:08.7]} 22. Qxe4
{[%clk 0:01:38]} 22... Bxb2 {[%clk 0:00:08.5]} 23. Rxb2 {[%clk 0:01:37.7]} 23...
Qxa3 {[%clk 0:00:08.1]} 24. Qe6+ {[%clk 0:01:33.2]} 24... Kh8 {[%clk 0:00:08.1]}
25. Rbb1 {[%clk 0:01:26.2]} 25... Nf6 {[%clk 0:00:03.9]} 26. Ng5 {[%clk
0:01:22.6]} 26... Rc7 {[%clk 0:00:01.9]} 27. Qf7 {[%clk 0:01:20.4]} 1-0

[Event "*** Titled Tuesday Blitz"]
[Site "Chess.com"]
[Date "2020.11.10"]
[Round "11"]
[White "Nikithebest"]
[Black "northridgehawk"]
[Result "1-0"]
[WhiteElo "2450"]
[BlackElo "2289"]
[TimeControl "180+1"]
[EndTime "12:11:25 PST"]
[Termination "Nikithebest won by checkmate"]

1. e4 {[%clk 0:03:00.9]} 1... e5 {[%clk 0:02:57.4]} 2. Nf3 {[%clk 0:02:59.9]}
2... Nc6 {[%clk 0:02:58.3]} 3. Nc3 {[%clk 0:02:57.9]} 3... Nf6 {[%clk
0:02:57.1]} 4. d4 {[%clk 0:02:56.9]} 4... exd4 {[%clk 0:02:57]} 5. Nxd4 {[%clk
0:02:57.8]} 5... Bb4 {[%clk 0:02:57.4]} 6. Nxc6 {[%clk 0:02:55.4]} 6... bxc6
{[%clk 0:02:44.2]} 7. Bd3 {[%clk 0:02:54.8]} 7... d5 {[%clk 0:02:43.8]} 8. exd5
{[%clk 0:02:53.4]} 8... cxd5 {[%clk 0:02:44.7]} 9. O-O {[%clk 0:02:53.6]} 9...
O-O {[%clk 0:02:44.3]} 10. h3 {[%clk 0:02:52.6]} 10... c6 {[%clk 0:02:44.4]} 11.
Qf3 {[%clk 0:02:48.8]} 11... Bd6 {[%clk 0:02:43.4]} 12. Bf4 {[%clk 0:02:48.1]}
12... Rb8 {[%clk 0:02:42.8]} 13. b3 {[%clk 0:02:47]} 13... Re8 {[%clk
0:02:41.8]} 14. Na4 {[%clk 0:02:39.7]} 14... Qc7 {[%clk 0:02:41.1]} 15. Bxd6
{[%clk 0:02:37.5]} 15... Qxd6 {[%clk 0:02:42]} 16. Rfd1 {[%clk 0:02:35.7]} 16...
h5 {[%clk 0:02:06.6]} 17. c4 {[%clk 0:02:29.7]} 17... d4 {[%clk 0:01:58.3]} 18.
c5 {[%clk 0:02:27.8]} 18... Qc7 {[%clk 0:01:42.3]} 19. Bc4 {[%clk 0:02:13.3]}
19... Re5 {[%clk 0:01:03.8]} 20. Rxd4 {[%clk 0:02:07.3]} 20... Rg5 {[%clk
0:00:51.1]} 21. Rad1 {[%clk 0:01:55.1]} 21... Bf5 {[%clk 0:00:48.6]} 22. Qe3
{[%clk 0:01:41.4]} 22... Rg6 {[%clk 0:00:32.3]} 23. Rd6 {[%clk 0:01:41.3]} 23...
Re8 {[%clk 0:00:26.8]} 24. Qf4 {[%clk 0:01:36.2]} 24... Bxh3 {[%clk 0:00:20.5]}
25. Rxf6 {[%clk 0:01:26.3]} 25... Rxg2+ {[%clk 0:00:20]} 26. Kh1 {[%clk
0:01:26.7]} 26... Qe7 {[%clk 0:00:14.5]} 27. Bxf7+ {[%clk 0:01:23.1]} 27... Kh8
{[%clk 0:00:13.9]} 28. Rh6+ {[%clk 0:01:13.2]} 28... gxh6 {[%clk 0:00:06.6]} 29.
Qxh6# {[%clk 0:01:14.1]} 1-0

[Event "*** Titled Tuesday Blitz"]
[Site "Chess.com"]
[Date "2020.11.10"]
[Round "11"]
[White "rugbyclub"]
[Black "Azoulas1"]
[Result "0-1"]
[WhiteElo "2184"]
[BlackElo "2083"]
[TimeControl "180+1"]
[EndTime "12:11:25 PST"]
[Termination "Azoulas1 won on time"]

1. Nf3 {[%clk 0:02:58.6]} 1... g6 {[%clk 0:02:59.3]} 2. c4 {[%clk 0:02:57.2]}
2... Bg7 {[%clk 0:02:59.3]} 3. Nc3 {[%clk 0:02:57.5]} 3... c5 {[%clk 0:02:59]}
4. g3 {[%clk 0:02:56]} 4... Nc6 {[%clk 0:02:58.9]} 5. Bg2 {[%clk 0:02:56.6]}
5... d6 {[%clk 0:02:59.1]} 6. O-O {[%clk 0:02:55.9]} 6... Bd7 {[%clk 0:02:59.1]}
7. e3 {[%clk 0:02:54]} 7... e6 {[%clk 0:02:58.2]} 8. d4 {[%clk 0:02:53.7]} 8...
cxd4 {[%clk 0:02:57.3]} 9. exd4 {[%clk 0:02:53.5]} 9... Nge7 {[%clk 0:02:57.2]}
10. Bf4 {[%clk 0:02:37.5]} 10... e5 {[%clk 0:02:53.4]} 11. dxe5 {[%clk
0:02:37.3]} 11... dxe5 {[%clk 0:02:53.3]} 12. Bg5 {[%clk 0:02:36.6]} 12... O-O
{[%clk 0:02:47.7]} 13. Nd5 {[%clk 0:02:36.2]} 13... h6 {[%clk 0:02:45.7]} 14.
Nf6+ {[%clk 0:02:15.3]} 14... Bxf6 {[%clk 0:02:27.9]} 15. Bxf6 {[%clk
0:02:16.2]} 15... Be6 {[%clk 0:02:27.8]} 16. Qc1 {[%clk 0:02:11.9]} 16... Kh7
{[%clk 0:02:26.6]} 17. Nxe5 {[%clk 0:02:08.6]} 17... Nxe5 {[%clk 0:02:25.4]} 18.
Bxe5 {[%clk 0:02:08.2]} 18... Rc8 {[%clk 0:02:24.8]} 19. b3 {[%clk 0:02:07.2]}
19... Nc6 {[%clk 0:02:24.1]} 20. Bb2 {[%clk 0:02:06.3]} 20... Qe7 {[%clk
0:02:16.5]} 21. Re1 {[%clk 0:02:03.6]} 21... b5 {[%clk 0:02:10.6]} 22. Qc3
{[%clk 0:01:55.9]} 22... Rg8 {[%clk 0:02:06.7]} 23. cxb5 {[%clk 0:01:40.9]}
23... Nb4 {[%clk 0:01:59]} 24. Qe5 {[%clk 0:01:34.3]} 24... Nd3 {[%clk
0:01:53.1]} 25. Qd4 {[%clk 0:01:21.6]} 25... Nxe1 {[%clk 0:01:52.2]} 26. Rxe1
{[%clk 0:01:19.6]} 26... Qc5 {[%clk 0:01:49.7]} 27. Qf6 {[%clk 0:00:06.1]} 27...
Qf8 {[%clk 0:01:29.2]} 28. Bc6 {[%clk 0:00:03.1]} 28... a6 {[%clk 0:01:24.7]}
0-1

[Event "*** Titled Tuesday Blitz"]
[Site "Chess.com"]
[Date "2020.11.10"]
[Round "11"]
[White "RaneshRatnesan"]
[Black "ZverevLev"]
[Result "0-1"]
[WhiteElo "2114"]
[BlackElo "2250"]
[TimeControl "180+1"]
[EndTime "12:11:33 PST"]
[Termination "ZverevLev won by resignation"]

1. c4 {[%clk 0:03:00.9]} 1... c5 {[%clk 0:03:00.7]} 2. Nc3 {[%clk 0:03:01]} 2...
d6 {[%clk 0:03:00.4]} 3. b3 {[%clk 0:03:01.4]} 3... Nf6 {[%clk 0:03:01.1]} 4.
Bb2 {[%clk 0:03:02]} 4... Nc6 {[%clk 0:03:01.6]} 5. Nf3 {[%clk 0:03:02.1]} 5...
e5 {[%clk 0:02:59.6]} 6. g3 {[%clk 0:03:01.6]} 6... Bf5 {[%clk 0:02:51.3]} 7.
Bg2 {[%clk 0:03:01.5]} 7... h5 {[%clk 0:02:43.4]} 8. h4 {[%clk 0:02:59.5]} 8...
Be7 {[%clk 0:02:41.2]} 9. d3 {[%clk 0:02:55.9]} 9... Nd4 {[%clk 0:02:40.3]} 10.
e3 {[%clk 0:02:53.2]} 10... Nxf3+ {[%clk 0:02:38.1]} 11. Bxf3 {[%clk 0:02:54.1]}
11... Qd7 {[%clk 0:02:37.3]} 12. Nd5 {[%clk 0:02:50.9]} 12... Nxd5 {[%clk
0:02:35.1]} 13. Bxd5 {[%clk 0:02:50.1]} 13... O-O-O {[%clk 0:02:36]} 14. b4
{[%clk 0:02:48.9]} 14... cxb4 {[%clk 0:02:34.9]} 15. Qb3 {[%clk 0:02:49.1]}
15... a5 {[%clk 0:02:33.9]} 16. a3 {[%clk 0:02:49.6]} 16... a4 {[%clk
0:02:30.1]} 17. Qxb4 {[%clk 0:02:49.4]} 17... Bxd3 {[%clk 0:02:29.9]} 18. Bc3
{[%clk 0:02:39.4]} 18... b5 {[%clk 0:02:20.1]} 19. Kd2 {[%clk 0:02:26.3]} 19...
e4 {[%clk 0:02:12.5]} 20. Bd4 {[%clk 0:02:15]} 20... Qg4 {[%clk 0:02:09.1]} 21.
Rhe1 {[%clk 0:02:01.3]} 21... Qf3 {[%clk 0:02:08]} 22. Bb7+ {[%clk 0:01:48.8]}
22... Kb8 {[%clk 0:02:01.1]} 23. Qxb5 {[%clk 0:01:49.1]} 23... Qxf2+ {[%clk
0:01:59.8]} 24. Kc3 {[%clk 0:01:49.2]} 24... Qc2+ {[%clk 0:01:59.1]} 25. Kb4
{[%clk 0:01:49.8]} 25... Qb3+ {[%clk 0:01:54.5]} 26. Ka5 {[%clk 0:01:49.4]}
26... Qxb5+ {[%clk 0:01:55.4]} 27. cxb5 {[%clk 0:01:49.7]} 27... Kxb7 {[%clk
0:01:56.3]} 28. Rec1 {[%clk 0:01:49.8]} 28... d5 {[%clk 0:01:55.6]} 29. Bc5
{[%clk 0:01:45.9]} 29... Bf6 {[%clk 0:01:51.6]} 30. Ra2 {[%clk 0:01:40.9]} 30...
Bc4 {[%clk 0:01:49.3]} 31. Rd2 {[%clk 0:01:39.2]} 31... Rc8 {[%clk 0:01:47.1]}
32. Kb4 {[%clk 0:01:35.7]} 32... Rc7 {[%clk 0:01:24.3]} 33. Bd6 {[%clk
0:01:34.5]} 33... Rd7 {[%clk 0:01:23.3]} 34. Bc5 {[%clk 0:01:34.9]} 34... Rhd8
{[%clk 0:01:20.5]} 35. Kxa4 {[%clk 0:01:33.4]} 35... Rc7 {[%clk 0:01:15.8]} 36.
Kb4 {[%clk 0:01:31.5]} 36... Be5 {[%clk 0:01:09.7]} 37. a4 {[%clk 0:01:27.2]}
37... Rxc5 {[%clk 0:01:00.6]} 38. Kxc5 {[%clk 0:01:25.3]} 38... Rc8+ {[%clk
0:01:01.5]} 39. Kb4 {[%clk 0:01:24.6]} 39... Bd6+ {[%clk 0:01:01.8]} 40. Kc3
{[%clk 0:01:23.1]} 40... Bd3+ {[%clk 0:00:56.9]} 41. Kb2 {[%clk 0:01:23.2]}
41... Be5+ {[%clk 0:00:57]} 42. Ka3 {[%clk 0:01:18.8]} 42... Rxc1 {[%clk
0:00:55.5]} 43. Rf2 {[%clk 0:01:18.7]} 43... f6 {[%clk 0:00:51.4]} 0-1

[Event "*** Titled Tuesday Blitz"]
[Site "Chess.com"]
[Date "2020.11.10"]
[Round "11"]
[White "Guenplen"]
[Black "sofaceindisguise"]
[Result "1-0"]
[WhiteElo "2880"]
[BlackElo "2690"]
[TimeControl "180+1"]
[EndTime "12:11:38 PST"]
[Termination "Guenplen won by checkmate"]

1. d4 {[%clk 0:03:00.9]} 1... Nf6 {[%clk 0:02:59.3]} 2. Bf4 {[%clk 0:03:01]}
2... d6 {[%clk 0:02:59.1]} 3. e3 {[%clk 0:03:00]} 3... Nc6 {[%clk 0:02:56]} 4.
Nf3 {[%clk 0:02:59.1]} 4... g6 {[%clk 0:02:54]} 5. h3 {[%clk 0:02:58.8]} 5...
Bg7 {[%clk 0:02:54.4]} 6. Bh2 {[%clk 0:02:59.2]} 6... O-O {[%clk 0:02:54.9]} 7.
Be2 {[%clk 0:02:59.8]} 7... Nd7 {[%clk 0:02:55.1]} 8. O-O {[%clk 0:02:59.6]}
8... e5 {[%clk 0:02:54.6]} 9. c3 {[%clk 0:03:00.2]} 9... h6 {[%clk 0:02:52.6]}
10. b4 {[%clk 0:03:00]} 10... Qe7 {[%clk 0:02:49.9]} 11. b5 {[%clk 0:02:59.6]}
11... Na5 {[%clk 0:02:49.2]} 12. Nbd2 {[%clk 0:02:55.1]} 12... b6 {[%clk
0:02:48.6]} 13. Nb3 {[%clk 0:02:42.1]} 13... Nxb3 {[%clk 0:02:47.8]} 14. axb3
{[%clk 0:02:43]} 14... Bb7 {[%clk 0:02:48.3]} 15. Nd2 {[%clk 0:02:39.1]} 15...
c6 {[%clk 0:02:46.7]} 16. Bf3 {[%clk 0:02:13.8]} 16... d5 {[%clk 0:02:41.8]} 17.
bxc6 {[%clk 0:02:14]} 17... Bxc6 {[%clk 0:02:42.7]} 18. Re1 {[%clk 0:02:13.9]}
18... Rfc8 {[%clk 0:02:39.2]} 19. c4 {[%clk 0:01:53.9]} 19... dxc4 {[%clk
0:02:30.1]} 20. d5 {[%clk 0:01:38.4]} 20... Bb7 {[%clk 0:02:23.7]} 21. d6 {[%clk
0:01:36.1]} 21... Bxf3 {[%clk 0:02:23.6]} 22. Qxf3 {[%clk 0:01:17.6]} 22... Qxd6
{[%clk 0:02:19.8]} 23. Nxc4 {[%clk 0:01:17.9]} 23... Qc6 {[%clk 0:02:18.6]} 24.
Qxc6 {[%clk 0:01:06.8]} 24... Rxc6 {[%clk 0:02:18]} 25. Red1 {[%clk 0:01:07.2]}
25... Nc5 {[%clk 0:02:13.7]} 26. Nxe5 {[%clk 0:00:50.3]} 26... Bxe5 {[%clk
0:02:11.7]} 27. Bxe5 {[%clk 0:00:49.8]} 27... f6 {[%clk 0:02:07]} 28. b4 {[%clk
0:00:30]} 28... Nb3 {[%clk 0:02:01.4]} 29. Rab1 {[%clk 0:00:29.6]} 29... fxe5
{[%clk 0:01:53.1]} 30. Rxb3 {[%clk 0:00:29.5]} 30... Kf7 {[%clk 0:01:53.5]} 31.
Rd7+ {[%clk 0:00:23.7]} 31... Ke6 {[%clk 0:01:53.1]} 32. Rbd3 {[%clk 0:00:18.6]}
32... a5 {[%clk 0:01:53.2]} 33. b5 {[%clk 0:00:18.6]} 33... Rc1+ {[%clk
0:01:51.1]} 34. Kh2 {[%clk 0:00:18.8]} 34... Kf5 {[%clk 0:01:50.8]} 35. f3
{[%clk 0:00:13.9]} 35... Rc5 {[%clk 0:01:48.4]} 36. h4 {[%clk 0:00:08.2]} 36...
e4 {[%clk 0:01:36]} 37. g4+ {[%clk 0:00:07]} 37... Kf6 {[%clk 0:01:33.4]} 38.
R3d6+ {[%clk 0:00:06.4]} 38... Ke5 {[%clk 0:01:32.4]} 39. f4# {[%clk 0:00:06.9]}
1-0